[Event "Challengers Triathlon (GM2)"]
[Site "Biel, CH"]
[Date "2025.07.20"]
[Round "13"]
[White "Hakobyan, Aram"]
[Black "Navara, David"]
[Result "1-0"]
[Board "1"]
[TimeControl "180+2"]
[WhiteFideId "13306677"]
[BlackFideId "309095"]
[WhiteTitle "GM"]
[BlackTitle "GM"]
[WhiteElo "2557"]
[BlackElo "2646"]
[WhiteTeam "ARM"]
[BlackTeam "CZE"]
[WhiteClock "0:00:09"]
[BlackClock "0:00:08"]
[Variant "Standard"]

1. d4 {[%clk 0:03:03]}  Nf6 {[%clk 0:03:03]} 2. c4 {[%clk 0:03:04]}  e6 {[%clk 0:03:04]} 3. Nc3 {[%clk 0:03:05]}  Bb4 {[%clk 0:03:05]} 4. e3 {[%clk 0:03:06]}  O-O {[%clk 0:03:06]} 5. a3 {[%clk 0:03:07]}  Bxc3+ {[%clk 0:03:07]} 6. bxc3 {[%clk 0:03:08]}  d6 {[%clk 0:03:08]} 7. Ne2 {[%clk 0:03:08]}  c5 {[%clk 0:03:09]} 8. Ng3 {[%clk 0:03:08]}  Nc6 {[%clk 0:03:04]} 9. Ra2 {[%clk 0:03:09]}  Qa5 {[%clk 0:03:05]} 10. Rd2 {[%clk 0:03:09]}  d5 {[%clk 0:03:06]} 11. Bb2 {[%clk 0:03:07]}  b6 {[%clk 0:02:49]} 12. cxd5 {[%clk 0:02:54]}  exd5 {[%clk 0:02:37]} 13. Be2 {[%clk 0:02:47]}  Ba6 {[%clk 0:02:33]} 14. O-O {[%clk 0:02:44]}  Bxe2 {[%clk 0:02:23]} 15. Qxe2 {[%clk 0:02:36]}  cxd4 {[%clk 0:02:22]} 16. cxd4 {[%clk 0:02:33]}  Ne7 {[%clk 0:02:20]} 17. f3 {[%clk 0:02:30]}  h5 {[%clk 0:02:04]} 18. Qd3 {[%clk 0:02:00]}  Rac8 {[%clk 0:01:53]} 19. Ne2 {[%clk 0:01:47]}  Ng6 {[%clk 0:01:32]} 20. Rdd1 {[%clk 0:01:32]}  Qa4 {[%clk 0:01:18]} 21. Rc1 {[%clk 0:01:31]}  Rfe8 {[%clk 0:01:12]} 22. Ng3 {[%clk 0:01:28]}  Qd7 {[%clk 0:01:03]} 23. Nf5 {[%clk 0:01:05]}  Ne7 {[%clk 0:01:01]} 24. Nxe7+ {[%clk 0:00:55]}  Qxe7 {[%clk 0:01:01]} 25. a4 {[%clk 0:00:53]}  Rxc1 {[%clk 0:00:52]} 26. Bxc1 {[%clk 0:00:53]}  Rc8 {[%clk 0:00:44]} 27. Bd2 {[%clk 0:00:40]}  Qd7 {[%clk 0:00:31]} 28. a5 {[%clk 0:00:38]}  b5 {[%clk 0:00:32]} 29. a6 {[%clk 0:00:39]}  Rc4 {[%clk 0:00:23]} 30. Rb1 {[%clk 0:00:34]}  Ne8 {[%clk 0:00:16]} 31. Qb3 {[%clk 0:00:26]}  Nc7 {[%clk 0:00:07]} 32. Ba5 {[%clk 0:00:23]}  Nxa6 {[%clk 0:00:04]} 33. Qxb5 {[%clk 0:00:24]}  Rc1+ {[%clk 0:00:05]} 34. Kf2 {[%clk 0:00:26]}  Rc2+ {[%clk 0:00:05]} 35. Kg1 {[%clk 0:00:24]}  Rc1+ {[%clk 0:00:06]} 36. Kf2 {[%clk 0:00:23]}  Rc2+ {[%clk 0:00:07]} 37. Kf1 {[%clk 0:00:22]}  Rc1+ {[%clk 0:00:04]} 38. Ke2 {[%clk 0:00:21]}  Rc2+ {[%clk 0:00:05]} 39. Bd2 {[%clk 0:00:20]}  Qe6 {[%clk 0:00:04]} 40. Qd3 {[%clk 0:00:18]}  Rc4 {[%clk 0:00:05]} 41. Kf2 {[%clk 0:00:17]}  g6 {[%clk 0:00:06]} 42. Kg1 {[%clk 0:00:11]}  Nc7 {[%clk 0:00:07]} 43. e4 {[%clk 0:00:12]}  Ne8 {[%clk 0:00:07]} 44. Rb8 {[%clk 0:00:09]}  Rc8 {[%clk 0:00:05]} 45. exd5 {[%clk 0:00:09]}  Qd7 {[%clk 0:00:06]} 46. Rxc8 {[%clk 0:00:09]}  Qxc8 {[%clk 0:00:07]} 47. Bf4 {[%clk 0:00:09]}  Qd7 {[%clk 0:00:08]} 48. Qb3 {[%clk 0:00:07]}  Qe7 {[%clk 0:00:05]} 49. h3 {[%clk 0:00:05]}  Qd7 {[%clk 0:00:03]} 50. Be5 {[%clk 0:00:06]}  f6 {[%clk 0:00:05]} 51. Bg3 {[%clk 0:00:07]}  Ng7 {[%clk 0:00:06]} 52. d6+ {[%clk 0:00:07]}  Kh7 {[%clk 0:00:07]} 53. Qa3 {[%clk 0:00:04]}  Ne6 {[%clk 0:00:07]} 54. Qc3 {[%clk 0:00:04]}  g5 {[%clk 0:00:08]} 55. d5 {[%clk 0:00:05]}  Ng7 {[%clk 0:00:06]} 56. Qc7 {[%clk 0:00:06]}  Qa4 {[%clk 0:00:04]} 57. d7 {[%clk 0:00:07]}  h4 {[%clk 0:00:05]} 58. d8=Q {[%clk 0:00:07]}  hxg3 {[%clk 0:00:05]} 59. Qxg3 {[%clk 0:00:08]}  Qd4+ {[%clk 0:00:06]} 60. Qf2 {[%clk 0:00:07]}  Qa1+ {[%clk 0:00:07]} 61. Kh2 {[%clk 0:00:08]}  Qe5+ {[%clk 0:00:08]} 62. Qg3 {[%clk 0:00:09]} 1-0

[Event "Challengers Triathlon (GM2)"]
[Site "Biel, CH"]
[Date "2025.07.20"]
[Round "13"]
[White "Jumabayev, Rinat"]
[Black "Dardha, Daniel"]
[Result "1/2-1/2"]
[Board "2"]
[TimeControl "180+2"]
[WhiteFideId "13702661"]
[BlackFideId "240990"]
[WhiteTitle "GM"]
[BlackTitle "GM"]
[WhiteElo "2520"]
[BlackElo "2592"]
[WhiteTeam "KAZ"]
[BlackTeam "BEL"]
[WhiteClock "0:00:08"]
[BlackClock "0:00:06"]
[Variant "Standard"]

1. e4 {[%clk 0:03:03]}  d6 {[%clk 0:03:02]} 2. d4 {[%clk 0:03:04]}  Nf6 {[%clk 0:03:03]} 3. Nc3 {[%clk 0:03:05]}  e5 {[%clk 0:03:03]} 4. Nf3 {[%clk 0:03:06]}  Nbd7 {[%clk 0:03:04]} 5. Bc4 {[%clk 0:03:07]}  Be7 {[%clk 0:03:05]} 6. O-O {[%clk 0:03:06]}  O-O {[%clk 0:03:05]} 7. a4 {[%clk 0:03:07]}  c6 {[%clk 0:03:03]} 8. a5 {[%clk 0:03:01]}  h6 {[%clk 0:03:04]} 9. Re1 {[%clk 0:03:02]}  Re8 {[%clk 0:03:04]} 10. h3 {[%clk 0:02:59]}  exd4 {[%clk 0:02:52]} 11. Nxd4 {[%clk 0:03:00]}  Bf8 {[%clk 0:02:46]} 12. Bf4 {[%clk 0:02:19]}  Ne5 {[%clk 0:02:45]} 13. Bf1 {[%clk 0:02:02]}  Bd7 {[%clk 0:02:39]} 14. Bg3 {[%clk 0:01:57]}  b5 {[%clk 0:02:31]} 15. axb6 {[%clk 0:01:54]}  axb6 {[%clk 0:02:25]} 16. Rxa8 {[%clk 0:01:54]}  Qxa8 {[%clk 0:02:25]} 17. f4 {[%clk 0:01:54]}  Ng6 {[%clk 0:02:25]} 18. e5 {[%clk 0:01:52]}  dxe5 {[%clk 0:02:13]} 19. fxe5 {[%clk 0:01:53]}  Nd5 {[%clk 0:02:13]} 20. Nxd5 {[%clk 0:01:40]}  cxd5 {[%clk 0:02:14]} 21. Bd3 {[%clk 0:01:41]}  Bc5 {[%clk 0:01:56]} 22. Bxg6 {[%clk 0:01:40]}  fxg6 {[%clk 0:01:56]} 23. Kh2 {[%clk 0:01:40]}  Qc8 {[%clk 0:01:49]} 24. e6 {[%clk 0:01:35]}  Bc6 {[%clk 0:01:15]} 25. Be5 {[%clk 0:01:11]}  Bxd4 {[%clk 0:00:56]} 26. Qxd4 {[%clk 0:01:09]}  Rxe6 {[%clk 0:00:49]} 27. Qxb6 {[%clk 0:01:06]}  Bb7 {[%clk 0:00:29]} 28. Qf2 {[%clk 0:01:01]}  d4 {[%clk 0:00:26]} 29. Bxd4 {[%clk 0:00:20]}  Rxe1 {[%clk 0:00:19]} 30. Qxe1 {[%clk 0:00:21]}  Qxc2 {[%clk 0:00:19]} 31. Qf2 {[%clk 0:00:21]}  Qe4 {[%clk 0:00:13]} 32. b4 {[%clk 0:00:14]}  Bc6 {[%clk 0:00:14]} 33. Bc3 {[%clk 0:00:07]}  g5 {[%clk 0:00:12]} 34. Kg1 {[%clk 0:00:04]}  g4 {[%clk 0:00:11]} 35. hxg4 {[%clk 0:00:04]}  Qxg4 {[%clk 0:00:11]} 36. Bd2 {[%clk 0:00:04]}  Qe4 {[%clk 0:00:05]} 37. Kh2 {[%clk 0:00:04]}  Kh7 {[%clk 0:00:05]} 38. Kg1 {[%clk 0:00:05]}  Qd5 {[%clk 0:00:04]} 39. Kh2 {[%clk 0:00:05]}  Qh5+ {[%clk 0:00:05]} 40. Kg1 {[%clk 0:00:07]}  Be4 {[%clk 0:00:06]} 41. Bc3 {[%clk 0:00:04]}  Qd1+ {[%clk 0:00:05]} 42. Qe1 {[%clk 0:00:05]}  Qc2 {[%clk 0:00:06]} 43. Bd2 {[%clk 0:00:06]}  Qd3 {[%clk 0:00:04]} 44. Qe3 {[%clk 0:00:07]}  Qd5 {[%clk 0:00:04]} 45. g3 {[%clk 0:00:05]}  Qf5 {[%clk 0:00:03]} 46. Qf4 {[%clk 0:00:06]}  Qg6 {[%clk 0:00:04]} 47. Bc3 {[%clk 0:00:07]}  Bb7 {[%clk 0:00:04]} 48. Qe5 {[%clk 0:00:07]}  Qb1+ {[%clk 0:00:04]} 49. Kf2 {[%clk 0:00:09]}  Qc2+ {[%clk 0:00:05]} 50. Ke3 {[%clk 0:00:10]}  Qc1+ {[%clk 0:00:03]} 51. Kd4 {[%clk 0:00:11]}  Qd1+ {[%clk 0:00:03]} 52. Kc5 {[%clk 0:00:12]}  Qd7 {[%clk 0:00:04]} 53. b5 {[%clk 0:00:13]}  Bg2 {[%clk 0:00:03]} 54. Kb4 {[%clk 0:00:12]}  Bf1 {[%clk 0:00:03]} 55. b6 {[%clk 0:00:11]}  Bg2 {[%clk 0:00:04]} 56. Qd4 {[%clk 0:00:08]}  Qb7 {[%clk 0:00:04]} 57. Ka5 {[%clk 0:00:08]}  Qa8+ {[%clk 0:00:05]} 58. Kb4 {[%clk 0:00:10]}  Qb7 {[%clk 0:00:06]} 59. Ka5 {[%clk 0:00:11]}  Qa8+ {[%clk 0:00:07]} 60. Kb4 {[%clk 0:00:12]}  Qb7 {[%clk 0:00:08]} 61. Qd3+ {[%clk 0:00:11]}  Be4 {[%clk 0:00:09]} 62. Qd6 {[%clk 0:00:12]}  Qf7 {[%clk 0:00:07]} 63. Qe5 {[%clk 0:00:08]}  Bc2 {[%clk 0:00:07]} 64. Kc5 {[%clk 0:00:08]}  h5 {[%clk 0:00:03]} 65. Kd6 {[%clk 0:00:05]}  Bf5 {[%clk 0:00:03]} 66. Kc5 {[%clk 0:00:06]}  Bc8 {[%clk 0:00:04]} 67. Qe4+ {[%clk 0:00:05]}  Bf5 {[%clk 0:00:04]} 68. Qe5 {[%clk 0:00:05]}  Bc8 {[%clk 0:00:05]} 69. Kb4 {[%clk 0:00:06]}  Bb7 {[%clk 0:00:05]} 70. Kc5 {[%clk 0:00:06]}  Qf8+ {[%clk 0:00:05]} 71. Kb5 {[%clk 0:00:07]}  Qf1+ {[%clk 0:00:04]} 72. Kb4 {[%clk 0:00:08]}  Qb1+ {[%clk 0:00:04]} 73. Kc5 {[%clk 0:00:09]}  Qg6 {[%clk 0:00:05]} 74. Bd4 {[%clk 0:00:07]}  Qc6+ {[%clk 0:00:04]} 75. Kb4 {[%clk 0:00:08]}  Qg6 {[%clk 0:00:05]} 76. Kc5 {[%clk 0:00:06]}  Qc6+ {[%clk 0:00:05]} 77. Kb4 {[%clk 0:00:08]}  Qg6 {[%clk 0:00:06]} 1/2-1/2

[Event "Challengers Triathlon (GM2)"]
[Site "Biel, CH"]
[Date "2025.07.20"]
[Round "13"]
[White "Theodorou, Nikolas"]
[Black "Ma, Qun"]
[Result "1/2-1/2"]
[Board "3"]
[TimeControl "180+2"]
[WhiteFideId "4262875"]
[BlackFideId "8603154"]
[WhiteTitle "GM"]
[BlackTitle "GM"]
[WhiteElo "2549"]
[BlackElo "2614"]
[WhiteTeam "GRE"]
[BlackTeam "CHN"]
[WhiteClock "0:00:10"]
[BlackClock "0:00:08"]
[Variant "Standard"]

1. d4 {[%clk 0:03:03]}  d5 {[%clk 0:03:04]} 2. c4 {[%clk 0:03:04]}  c6 {[%clk 0:03:05]} 3. Nf3 {[%clk 0:03:05]}  Nf6 {[%clk 0:03:06]} 4. Nc3 {[%clk 0:03:06]}  e6 {[%clk 0:03:08]} 5. g3 {[%clk 0:03:06]}  dxc4 {[%clk 0:03:09]} 6. Bg2 {[%clk 0:03:07]}  b5 {[%clk 0:03:10]} 7. O-O {[%clk 0:03:04]}  Bb7 {[%clk 0:03:10]} 8. e4 {[%clk 0:03:03]}  Be7 {[%clk 0:03:11]} 9. h4 {[%clk 0:02:59]}  h6 {[%clk 0:03:10]} 10. Qe2 {[%clk 0:02:20]}  Nbd7 {[%clk 0:02:33]} 11. Rd1 {[%clk 0:02:21]}  a6 {[%clk 0:02:27]} 12. Bf4 {[%clk 0:02:14]}  O-O {[%clk 0:02:04]} 13. Bh3 {[%clk 0:02:15]}  Qe8 {[%clk 0:01:42]} 14. e5 {[%clk 0:01:58]}  Nd5 {[%clk 0:01:42]} 15. Nxd5 {[%clk 0:01:58]}  cxd5 {[%clk 0:01:07]} 16. Nh2 {[%clk 0:01:40]}  Bc8 {[%clk 0:00:49]} 17. Re1 {[%clk 0:01:32]}  Ra7 {[%clk 0:00:49]} 18. Ng4 {[%clk 0:01:30]}  f5 {[%clk 0:00:49]} 19. exf6 {[%clk 0:01:28]}  Nxf6 {[%clk 0:00:43]} 20. Ne5 {[%clk 0:01:24]}  Ne4 {[%clk 0:00:34]} 21. f3 {[%clk 0:01:02]}  Nd6 {[%clk 0:00:31]} 22. Bg4 {[%clk 0:00:38]}  Nf5 {[%clk 0:00:32]} 23. h5 {[%clk 0:00:27]}  Bd6 {[%clk 0:00:15]} 24. Rad1 {[%clk 0:00:20]}  Rf6 {[%clk 0:00:12]} 25. Kh2 {[%clk 0:00:19]}  b4 {[%clk 0:00:11]} 26. Ng6 {[%clk 0:00:17]}  Bxf4 {[%clk 0:00:06]} 27. Nxf4 {[%clk 0:00:17]}  Qf7 {[%clk 0:00:07]} 28. Qe5 {[%clk 0:00:14]}  Rb7 {[%clk 0:00:05]} 29. Kg2 {[%clk 0:00:11]}  a5 {[%clk 0:00:07]} 30. Ng6 {[%clk 0:00:10]}  c3 {[%clk 0:00:08]} 31. Rc1 {[%clk 0:00:10]}  Kh7 {[%clk 0:00:07]} 32. bxc3 {[%clk 0:00:10]}  b3 {[%clk 0:00:04]} 33. axb3 {[%clk 0:00:09]}  Rxb3 {[%clk 0:00:08]} 34. Re2 {[%clk 0:00:05]}  a4 {[%clk 0:00:09]} 35. Rcc2 {[%clk 0:00:03]}  Ba6 {[%clk 0:00:09]} 36. Rf2 {[%clk 0:00:04]}  a3 {[%clk 0:00:10]} 37. Kh2 {[%clk 0:00:05]}  Rxg6 {[%clk 0:00:08]} 38. hxg6+ {[%clk 0:00:05]}  Qxg6 {[%clk 0:00:09]} 39. Bh3 {[%clk 0:00:06]}  Bc4 {[%clk 0:00:10]} 40. Bxf5 {[%clk 0:00:04]}  exf5 {[%clk 0:00:11]} 41. Kg2 {[%clk 0:00:05]}  Rb1 {[%clk 0:00:12]} 42. Qf4 {[%clk 0:00:04]}  Qh5 {[%clk 0:00:13]} 43. Qh4 {[%clk 0:00:06]}  Qe8 {[%clk 0:00:14]} 44. Qf4 {[%clk 0:00:04]}  Qh5 {[%clk 0:00:14]} 45. Qh4 {[%clk 0:00:06]}  Qe8 {[%clk 0:00:14]} 46. Qf4 {[%clk 0:00:07]}  Bd3 {[%clk 0:00:10]} 47. Rc1 {[%clk 0:00:07]}  Rb2 {[%clk 0:00:10]} 48. Ra1 {[%clk 0:00:04]}  Rxf2+ {[%clk 0:00:11]} 49. Kxf2 {[%clk 0:00:05]}  Qe2+ {[%clk 0:00:12]} 50. Kg1 {[%clk 0:00:07]}  a2 {[%clk 0:00:12]} 51. g4 {[%clk 0:00:03]}  fxg4 {[%clk 0:00:12]} 52. fxg4 {[%clk 0:00:04]}  Bb1 {[%clk 0:00:08]} 53. Kh1 {[%clk 0:00:03]}  Qb2 {[%clk 0:00:04]} 54. Kg1 {[%clk 0:00:04]}  Qxa1 {[%clk 0:00:04]} 55. Qc1 {[%clk 0:00:05]}  Kg8 {[%clk 0:00:05]} 56. Kf2 {[%clk 0:00:05]}  Kf7 {[%clk 0:00:06]} 57. Kg3 {[%clk 0:00:06]}  Ke6 {[%clk 0:00:07]} 58. Kh4 {[%clk 0:00:06]}  Kd7 {[%clk 0:00:08]} 59. g5 {[%clk 0:00:06]}  Kc6 {[%clk 0:00:08]} 60. gxh6 {[%clk 0:00:07]}  gxh6 {[%clk 0:00:10]} 61. Qxh6+ {[%clk 0:00:06]}  Kb5 {[%clk 0:00:11]} 62. Qc1 {[%clk 0:00:05]}  Kc4 {[%clk 0:00:12]} 63. Qf1+ {[%clk 0:00:05]}  Kb3 {[%clk 0:00:13]} 64. Qd1+ {[%clk 0:00:05]}  Ka3 {[%clk 0:00:14]} 65. Qe1 {[%clk 0:00:04]}  Qb2 {[%clk 0:00:15]} 66. Qe7+ {[%clk 0:00:05]}  Kb3 {[%clk 0:00:16]} 67. Qb7+ {[%clk 0:00:05]}  Kc2 {[%clk 0:00:16]} 68. Qh7+ {[%clk 0:00:05]}  Kxc3 {[%clk 0:00:17]} 69. Qc7+ {[%clk 0:00:06]}  Kd2 {[%clk 0:00:17]} 70. Qh2+ {[%clk 0:00:04]}  Kc1 {[%clk 0:00:17]} 71. Qg1+ {[%clk 0:00:05]}  Kc2 {[%clk 0:00:19]} 72. Qh2+ {[%clk 0:00:06]}  Kb3 {[%clk 0:00:18]} 73. Qb8+ {[%clk 0:00:06]}  Kc3 {[%clk 0:00:19]} 74. Qc7+ {[%clk 0:00:08]}  Kd3 {[%clk 0:00:20]} 75. Qg3+ {[%clk 0:00:07]}  Kc4 {[%clk 0:00:18]} 76. Qc7+ {[%clk 0:00:08]}  Kd3 {[%clk 0:00:15]} 77. Qg3+ {[%clk 0:00:08]}  Kd2 {[%clk 0:00:18]} 78. Qh2+ {[%clk 0:00:08]}  Kc1 {[%clk 0:00:18]} 79. Qg1+ {[%clk 0:00:09]}  Kc2 {[%clk 0:00:17]} 80. Qh2+ {[%clk 0:00:10]}  Kc3 {[%clk 0:00:09]} 81. Qc7+ {[%clk 0:00:10]}  Kd3 {[%clk 0:00:08]} 1/2-1/2

[Event "Challengers Triathlon (GM2)"]
[Site "Biel, CH"]
[Date "2025.07.20"]
[Round "14"]
[White "Navara, David"]
[Black "Ma, Qun"]
[Result "1-0"]
[Board "1"]
[TimeControl "180+2"]
[WhiteFideId "309095"]
[BlackFideId "8603154"]
[WhiteTitle "GM"]
[BlackTitle "GM"]
[WhiteElo "2646"]
[BlackElo "2614"]
[WhiteTeam "CZE"]
[BlackTeam "CHN"]
[WhiteClock "0:00:08"]
[BlackClock "0:00:04"]
[Variant "Standard"]

1. d4 {[%clk 0:03:03]}  d5 {[%clk 0:03:04]} 2. c4 {[%clk 0:03:04]}  c6 {[%clk 0:03:05]} 3. Nf3 {[%clk 0:03:05]}  Nf6 {[%clk 0:03:07]} 4. e3 {[%clk 0:03:05]}  Bg4 {[%clk 0:03:08]} 5. h3 {[%clk 0:03:04]}  Bxf3 {[%clk 0:03:09]} 6. Qxf3 {[%clk 0:03:04]}  e6 {[%clk 0:03:10]} 7. Nc3 {[%clk 0:03:05]}  Bb4 {[%clk 0:03:11]} 8. Bd2 {[%clk 0:03:06]}  O-O {[%clk 0:03:07]} 9. Bd3 {[%clk 0:03:06]}  Nbd7 {[%clk 0:03:07]} 10. a3 {[%clk 0:03:00]}  Bd6 {[%clk 0:03:00]} 11. cxd5 {[%clk 0:02:44]}  exd5 {[%clk 0:03:00]} 12. g4 {[%clk 0:02:41]}  Nb6 {[%clk 0:02:40]} 13. g5 {[%clk 0:01:55]}  Nfd7 {[%clk 0:02:41]} 14. h4 {[%clk 0:01:49]}  Qe7 {[%clk 0:02:42]} 15. Rg1 {[%clk 0:01:38]}  Nc4 {[%clk 0:02:36]} 16. Bxc4 {[%clk 0:01:38]}  dxc4 {[%clk 0:02:37]} 17. Ne4 {[%clk 0:01:38]}  Rfd8 {[%clk 0:02:08]} 18. Bc3 {[%clk 0:01:29]}  Nb6 {[%clk 0:01:32]} 19. h5 {[%clk 0:00:54]}  Nd5 {[%clk 0:01:27]} 20. Nf6+ {[%clk 0:00:37]}  Kh8 {[%clk 0:01:28]} 21. Nxd5 {[%clk 0:00:37]}  cxd5 {[%clk 0:01:30]} 22. h6 {[%clk 0:00:38]}  g6 {[%clk 0:01:14]} 23. Qxd5 {[%clk 0:00:17]}  Bh2 {[%clk 0:01:08]} 24. Qc5 {[%clk 0:00:24]}  Qe4 {[%clk 0:00:40]} 25. Qxc4 {[%clk 0:00:24]}  Kg8 {[%clk 0:00:37]} 26. Rf1 {[%clk 0:00:24]}  Rac8 {[%clk 0:00:35]} 27. Qe2 {[%clk 0:00:21]}  Bd6 {[%clk 0:00:31]} 28. Rd1 {[%clk 0:00:17]}  Be7 {[%clk 0:00:27]} 29. Rg1 {[%clk 0:00:14]}  f6 {[%clk 0:00:07]} 30. gxf6 {[%clk 0:00:11]}  Bxf6 {[%clk 0:00:08]} 31. Qg4 {[%clk 0:00:12]}  Qe7 {[%clk 0:00:06]} 32. Ke2 {[%clk 0:00:11]}  Rc6 {[%clk 0:00:04]} 33. Rg3 {[%clk 0:00:11]}  b5 {[%clk 0:00:04]} 34. Rf3 {[%clk 0:00:10]}  a5 {[%clk 0:00:04]} 35. Bxa5 {[%clk 0:00:09]}  Rc2+ {[%clk 0:00:04]} 36. Rd2 {[%clk 0:00:10]}  Rc1 {[%clk 0:00:05]} 37. Bb4 {[%clk 0:00:06]}  Qf7 {[%clk 0:00:07]} 38. Qe4 {[%clk 0:00:06]}  Re8 {[%clk 0:00:05]} 39. Qd3 {[%clk 0:00:06]}  Rec8 {[%clk 0:00:05]} 40. Bc5 {[%clk 0:00:07]}  Qe6 {[%clk 0:00:04]} 41. Qxb5 {[%clk 0:00:06]}  Bg5 {[%clk 0:00:04]} 42. Qd3 {[%clk 0:00:06]}  Bxh6 {[%clk 0:00:04]} 43. b4 {[%clk 0:00:07]}  Qg4 {[%clk 0:00:04]} 44. d5 {[%clk 0:00:07]}  Qg1 {[%clk 0:00:05]} 45. Rd1 {[%clk 0:00:07]}  Rxd1 {[%clk 0:00:05]} 46. Qxd1 {[%clk 0:00:08]}  Qg4 {[%clk 0:00:06]} 47. d6 {[%clk 0:00:07]}  Qe4 {[%clk 0:00:03]} 48. Qb3+ {[%clk 0:00:07]}  Kh8 {[%clk 0:00:04]} 49. Qd3 {[%clk 0:00:05]}  Qe6 {[%clk 0:00:04]} 50. d7 {[%clk 0:00:05]}  Rd8 {[%clk 0:00:06]} 51. Bd4+ {[%clk 0:00:06]}  Bg7 {[%clk 0:00:07]} 52. Bxg7+ {[%clk 0:00:06]}  Kxg7 {[%clk 0:00:08]} 53. Qd4+ {[%clk 0:00:06]}  Kg8 {[%clk 0:00:09]} 54. Rf6 {[%clk 0:00:07]}  Qa2+ {[%clk 0:00:04]} 55. Kf3 {[%clk 0:00:06]}  Qb1 {[%clk 0:00:05]} 56. Kg2 {[%clk 0:00:07]}  Qc2 {[%clk 0:00:05]} 57. Qd5+ {[%clk 0:00:07]}  Kg7 {[%clk 0:00:05]} 58. Rf7+ {[%clk 0:00:08]}  Kh6 {[%clk 0:00:06]} 59. Qd4 {[%clk 0:00:06]}  Qc6+ {[%clk 0:00:04]} 60. f3 {[%clk 0:00:07]}  Qc2+ {[%clk 0:00:04]} 61. Kg3 {[%clk 0:00:08]} 1-0

[Event "Challengers Triathlon (GM2)"]
[Site "Biel, CH"]
[Date "2025.07.20"]
[Round "14"]
[White "Dardha, Daniel"]
[Black "Theodorou, Nikolas"]
[Result "1-0"]
[Board "2"]
[TimeControl "180+2"]
[WhiteFideId "240990"]
[BlackFideId "4262875"]
[WhiteTitle "GM"]
[BlackTitle "GM"]
[WhiteElo "2592"]
[BlackElo "2549"]
[WhiteTeam "BEL"]
[BlackTeam "GRE"]
[WhiteClock "0:00:05"]
[BlackClock "0:00:03"]
[Variant "Standard"]

1. d4 {[%clk 0:03:02]}  Nf6 {[%clk 0:03:03]} 2. Bg5 {[%clk 0:03:02]}  g6 {[%clk 0:03:03]} 3. Bxf6 {[%clk 0:03:02]}  exf6 {[%clk 0:03:04]} 4. e3 {[%clk 0:03:02]}  d5 {[%clk 0:03:01]} 5. c4 {[%clk 0:03:03]}  dxc4 {[%clk 0:02:48]} 6. Bxc4 {[%clk 0:03:03]}  Bd6 {[%clk 0:02:49]} 7. Nc3 {[%clk 0:03:03]}  O-O {[%clk 0:02:49]} 8. Qf3 {[%clk 0:03:01]}  Kg7 {[%clk 0:02:46]} 9. Nge2 {[%clk 0:02:59]}  a6 {[%clk 0:02:45]} 10. O-O-O {[%clk 0:02:48]}  Nc6 {[%clk 0:02:45]} 11. Nf4 {[%clk 0:02:39]}  Bd7 {[%clk 0:02:16]} 12. g4 {[%clk 0:02:28]}  Nb4 {[%clk 0:01:34]} 13. a3 {[%clk 0:02:14]}  b5 {[%clk 0:01:35]} 14. Bb3 {[%clk 0:01:47]}  Nc6 {[%clk 0:01:35]} 15. Bd5 {[%clk 0:01:43]}  b4 {[%clk 0:01:15]} 16. axb4 {[%clk 0:01:42]}  Nxb4 {[%clk 0:01:04]} 17. Bxa8 {[%clk 0:01:42]}  Qxa8 {[%clk 0:01:05]} 18. Qxa8 {[%clk 0:01:42]}  Rxa8 {[%clk 0:01:05]} 19. h3 {[%clk 0:01:36]}  a5 {[%clk 0:01:07]} 20. Kd2 {[%clk 0:01:30]}  Rb8 {[%clk 0:01:08]} 21. Ke2 {[%clk 0:01:28]}  a4 {[%clk 0:00:59]} 22. Rd2 {[%clk 0:01:19]}  Bxf4 {[%clk 0:00:45]} 23. exf4 {[%clk 0:01:19]}  Re8+ {[%clk 0:00:45]} 24. Kf3 {[%clk 0:01:17]}  Ra8 {[%clk 0:00:37]} 25. Ra1 {[%clk 0:01:16]}  Ra5 {[%clk 0:00:38]} 26. d5 {[%clk 0:01:12]}  Rc5 {[%clk 0:00:25]} 27. Nxa4 {[%clk 0:00:58]}  Ra5 {[%clk 0:00:26]} 28. b3 {[%clk 0:00:56]}  Nxd5 {[%clk 0:00:26]} 29. Kg3 {[%clk 0:00:50]}  Be6 {[%clk 0:00:23]} 30. Rc1 {[%clk 0:00:48]}  g5 {[%clk 0:00:10]} 31. fxg5 {[%clk 0:00:46]}  fxg5 {[%clk 0:00:11]} 32. Rc5 {[%clk 0:00:46]}  Rxc5 {[%clk 0:00:06]} 33. Nxc5 {[%clk 0:00:47]}  Nf4 {[%clk 0:00:07]} 34. h4 {[%clk 0:00:45]}  h6 {[%clk 0:00:08]} 35. Nxe6+ {[%clk 0:00:45]}  Nxe6 {[%clk 0:00:09]} 36. hxg5 {[%clk 0:00:35]}  hxg5 {[%clk 0:00:10]} 37. Kf3 {[%clk 0:00:23]}  Kf6 {[%clk 0:00:10]} 38. Rd5 {[%clk 0:00:24]}  c6 {[%clk 0:00:08]} 39. Rf5+ {[%clk 0:00:25]}  Ke7 {[%clk 0:00:09]} 40. Ke4 {[%clk 0:00:26]}  f6 {[%clk 0:00:10]} 41. b4 {[%clk 0:00:26]}  Nc7 {[%clk 0:00:09]} 42. Rc5 {[%clk 0:00:23]}  Kd6 {[%clk 0:00:10]} 43. Kf5 {[%clk 0:00:22]}  Nd5 {[%clk 0:00:11]} 44. Rc1 {[%clk 0:00:19]}  Kd7 {[%clk 0:00:07]} 45. Re1 {[%clk 0:00:19]}  Kc7 {[%clk 0:00:03]} 46. Rc1 {[%clk 0:00:04]}  Kb6 {[%clk 0:00:03]} 47. Ke6 {[%clk 0:00:05]} 1-0

[Event "Challengers Triathlon (GM2)"]
[Site "Biel, CH"]
[Date "2025.07.20"]
[Round "14"]
[White "Hakobyan, Aram"]
[Black "Jumabayev, Rinat"]
[Result "1-0"]
[Board "3"]
[TimeControl "180+2"]
[WhiteFideId "13306677"]
[BlackFideId "13702661"]
[WhiteTitle "GM"]
[BlackTitle "GM"]
[WhiteElo "2557"]
[BlackElo "2520"]
[WhiteTeam "ARM"]
[BlackTeam "KAZ"]
[WhiteClock "0:00:22"]
[BlackClock "0:00:04"]
[Variant "Standard"]

1. d4 {[%clk 0:03:02]}  e6 {[%clk 0:02:59]} 2. c4 {[%clk 0:03:02]}  d5 {[%clk 0:03:00]} 3. Nc3 {[%clk 0:03:03]}  Nf6 {[%clk 0:02:55]} 4. Bg5 {[%clk 0:03:04]}  Be7 {[%clk 0:02:54]} 5. e3 {[%clk 0:03:05]}  h6 {[%clk 0:02:54]} 6. Bxf6 {[%clk 0:03:05]}  Bxf6 {[%clk 0:02:55]} 7. Nf3 {[%clk 0:03:06]}  O-O {[%clk 0:02:46]} 8. Rc1 {[%clk 0:03:06]}  a6 {[%clk 0:02:11]} 9. a3 {[%clk 0:03:00]}  dxc4 {[%clk 0:01:52]} 10. Bxc4 {[%clk 0:03:00]}  Nd7 {[%clk 0:01:53]} 11. O-O {[%clk 0:02:55]}  c5 {[%clk 0:01:53]} 12. Bd3 {[%clk 0:02:40]}  cxd4 {[%clk 0:01:37]} 13. exd4 {[%clk 0:02:39]}  b5 {[%clk 0:01:10]} 14. Be4 {[%clk 0:02:25]}  Ra7 {[%clk 0:01:01]} 15. Qe2 {[%clk 0:02:23]}  Bb7 {[%clk 0:00:36]} 16. Rfd1 {[%clk 0:02:22]}  Bxe4 {[%clk 0:00:31]} 17. Nxe4 {[%clk 0:02:22]}  Rc7 {[%clk 0:00:32]} 18. g3 {[%clk 0:01:34]}  Nb6 {[%clk 0:00:14]} 19. Nxf6+ {[%clk 0:01:33]}  gxf6 {[%clk 0:00:15]} 20. Rxc7 {[%clk 0:01:28]}  Qxc7 {[%clk 0:00:16]} 21. Qe3 {[%clk 0:01:21]}  Kg7 {[%clk 0:00:16]} 22. Rc1 {[%clk 0:01:23]}  Qd6 {[%clk 0:00:15]} 23. Rc5 {[%clk 0:01:17]}  Nd5 {[%clk 0:00:15]} 24. Qe4 {[%clk 0:01:14]}  Rd8 {[%clk 0:00:12]} 25. Kg2 {[%clk 0:01:13]}  Qd7 {[%clk 0:00:06]} 26. Qg4+ {[%clk 0:01:12]}  Kh7 {[%clk 0:00:08]} 27. Qh4 {[%clk 0:01:11]}  Kg7 {[%clk 0:00:09]} 28. Nd2 {[%clk 0:01:10]}  Ne7 {[%clk 0:00:08]} 29. Qg4+ {[%clk 0:00:58]}  Ng6 {[%clk 0:00:08]} 30. Nf3 {[%clk 0:00:58]}  f5 {[%clk 0:00:08]} 31. Qh5 {[%clk 0:00:57]}  Qe7 {[%clk 0:00:09]} 32. b4 {[%clk 0:00:46]}  Qb7 {[%clk 0:00:10]} 33. Kg1 {[%clk 0:00:39]}  Qe4 {[%clk 0:00:06]} 34. Rc7 {[%clk 0:00:38]}  Qb1+ {[%clk 0:00:07]} 35. Kg2 {[%clk 0:00:39]}  Qe4 {[%clk 0:00:08]} 36. Kg1 {[%clk 0:00:38]}  Qb1+ {[%clk 0:00:09]} 37. Kg2 {[%clk 0:00:39]}  Qe4 {[%clk 0:00:10]} 38. Kh3 {[%clk 0:00:28]}  Rf8 {[%clk 0:00:03]} 39. Ra7 {[%clk 0:00:22]}  Qe2 {[%clk 0:00:04]} 40. Kg2 {[%clk 0:00:22]}  Qe4 {[%clk 0:00:04]} 1-0